Cogmind - Beta 15 @@@ ROGUE MODE // 2025.09.16 @ 17:45:12 Player: beans Result: Destroyed by Y-45 Defender with Heavy Assault Rifle Performance ------------- Evolutions (0) 0 Regions Visited (3) 600 Robots Destroyed (7) 35 Value Destroyed (94) 94 Prototype IDs (0) 0 Alien Tech Used (0) 0 Bonus (0) 0 TOTAL SCORE: 729 Bonus ------- None Cogmind --------- Core Integrity 0/250 Matter 272/300 Energy 100/100 System Corruption 0% Temperature Cool (27) Movement Flying (40) Location -10/Subcaves Parts ------- > --- POWER (1) -------- (None) > --- PROPULSION (2) --- Flight Unit > --- UTILITY (2) ------ (None) > --- WEAPON (2) ------- Subdweller Machine Gun > --- INVENTORY (5) ---- Heat Sink Machine Analyzer Peak State ------------ > --- POWER ------------ Ion Engine > --- PROPULSION ------- Light Treads Light Treads > --- UTILITY ---------- (None) > --- WEAPON ----------- Medium Laser Small Laser > --- INVENTORY -------- (None) [Rating: 5] Favorites ----------- Power Ion Engine Engine Ion Engine Propulsion Light Treads Treads Light Treads Flight Unit Flight Unit Utility Heat Sink Device Heat Sink Weapon Small Laser Energy Gun Small Laser Ballistic Gun Subdweller Machine Gun Build | -11 -10 -10 -10 ------- Run | Yrd Mat Min Sub Slots Evolved . | . . . . Power . | . . . . Propulsion . | . . . . Utility . | . . . . Weapon . | . . . . Parts Attached 12 | 5 2 2 3 Power 2 | 1 . . 1 Engine 2 | 1 . . 1 Core . | . . . . Reactor . | . . . . Propulsion 6 | 2 2 1 1 Treads 2 | 2 . . . Leg . | . . . . Wheel . | . . . . Hover . | . . . . Flight 4 | . 2 1 1 Utility 1 | . . 1 . Device 1 | . . 1 . Storage . | . . . . Processor . | . . . . Hackware . | . . . . Protection . | . . . . Artifact . | . . . . Weapon 3 | 2 . . 1 Energy Gun 2 | 2 . . . Energy Cannon . | . . . . Ballistic Gun 1 | . . . 1 Ballistic Cannon . | . . . . Launcher . | . . . . Special Weapon . | . . . . Impact Weapon . | . . . . Slashing Weapon . | . . . . Piercing Weapon . | . . . . Special Melee Weapon . | . . . . Unidentified Prototypes . | . . . . Parts Lost 7 | . . 2 5 Power 2 | . . 1 1 Propulsion 2 | . . . 2 Utility 1 | . . . 1 Weapon 2 | . . 1 1 Highest Loss Streak 5 | . . 2 5 To Critical Strikes . | . . . . Average Backups . | . . 1 1 Power . | . . . . Propulsion . | . . 1 . Utility . | . . . 1 Weapon . | . . . . Tool/Special . | . . . . Unused Backups 1 | . . . 1 Power . | . . . . Propulsion . | . . . . Utility 1 | . . . 1 Weapon . | . . . . Tool/Special . | . . . . Average Slot Usage (%) 53 | . 71 59 33 Engine 7 | . 14 4 . Treads 10 | . 24 . . Flight 12 | . 3 28 16 Device 5 | . . 7 11 Energy Gun 15 | . 28 18 1 Ballistic Gun 1 | . . . 2 Peak Build Rating 5 | 5 5 5 4 Average Rating 3 | 3 4 4 2 On Entrance 3 | . 5 5 4 Naked Turns . | . . . . Heaviest Build 8 | 8 8 2 4 Greatest Support 40 | 40 40 8 8 Greatest Overweight (x) 2 | . 2 . . Average Overweight (x) . | . . . . Largest Inventory Capacity 5 | 5 5 5 5 Average Capacity 5 | 5 5 5 5 Most Carried 3 | 2 2 3 2 Average Carried . | . . 1 1 Final Capacity 5 | 5 5 5 5 Final Carried 2 | . 2 1 2 Class Distribution -------------------- 100% | Mutant Dominant Class ---------------- Mutant | -10/Materials Mutant | -10/Mines Mutant | -10/Subcaves Resources | -11 -10 -10 -10 ----------- Run | Yrd Mat Min Sub Matter Collected 298 | 198 45 37 18 Remotely . | . . . . Salvage Created 139 | . 96 43 . Parts 16 | . 13 3 . Haulers Intercepted . | . . . . Recyclers Shooed . | . . . . Parts Field Recycled . | . . . . Retrieved Matter . | . . . . Parts Self-Destructed . | . . . . Prevented . | . . . . Kills | -11 -10 -10 -10 ------- Run | Yrd Mat Min Sub Combat Hostiles Destroyed 7 | . 6 1 . Guns 7 | . 6 1 . Classes Destroyed 2 | . 1 1 . Swarmer 6 | . 6 . . Grunt 1 | . . 1 . Best Kill Streak 3 | . 3 1 . Combat Bots Only 3 | . 3 1 . Max Kills in Single Turn 2 | . 2 1 . Gunslinging . | . . . . Exploded . | . . . . Melee . | . . . . Uniques/NPCs Destroyed . | . . . . Combat | -11 -10 -10 -10 -------- Run | Yrd Mat Min Sub Hostile Shots Fired 64 | . 16 29 19 Missed 18 | . 5 9 4 Hits 46 | . 11 20 15 Projectile 46 | . 11 20 15 Critical Strikes 3 | . 1 1 1 Damage Taken 645 | . 86 284 275 Core 261 | . 32 104 125 Absorbed by Shields . | . . . . Core Remaining (%) 100 | 100 . . . Volleys Fired 28 | . 11 7 10 Largest 2 | . 2 2 1 Hottest 90 | . 90 90 40 Shots Fired 46 | . 22 14 10 Gun 46 | . 22 14 10 Cannon . | . . . . Launcher . | . . . . Special . | . . . . Kinetic 9 | . . . 9 Thermal 37 | . 22 14 1 Explosive . | . . . . Electromagnetic . | . . . . Robot Hit Streak 8 | . 2 4 8 Robot Miss Streak 3 | . 3 1 1 Penetration Max . | . . . . Secondary Targets 2 | . 1 1 . Max Gunslinging Chain 1 | . 1 1 . Shots Hit Robots 28 | . 10 9 9 Core Hits 10 | . 6 4 . Critical Kills . | . . . . Critical Parts Destroyed . | . . . . Critical Strikes . | . . . . Melee Attacks . | . . . . Impact . | . . . . Slashing . | . . . . Piercing . | . . . . Sneak Attacks . | . . . . Combat Hostiles . | . . . . Follow-up Attacks . | . . . . Damage Inflicted 405 | . 127 116 162 Guns 405 | . 127 116 162 Cannons . | . . . . Explosions . | . . . . Melee . | . . . . Ramming . | . . . . Kinetic 151 | . . . 151 Thermal 254 | . 127 116 11 Explosive . | . . . . Electromagnetic . | . . . . Impact . | . . . . Slashing . | . . . . Piercing . | . . . . Highest Corruption . | . . . . Average Corruption . | . . . . Corruption Purged . | . . . . Corruption Blocked . | . . . . Overload Shots . | . . . . Overflow Damage . | . . . . Projectiles . | . . . . Explosions . | . . . . Melee . | . . . . Knockbacks . | . . . . Impact . | . . . . Kinetic . | . . . . Secondary . | . . . . Self-Inflicted Damage . | . . . . Shots . | . . . . Rammed . | . . . . Targets Rammed . | . . . . Kicked . | . . . . Crushed . | . . . . Highest Temperature 358 | . 90 358 . Average Temperature 102 | . 39 186 . Received Heat Transfer 255 | . . 183 72 Effects 1 | . . 1 . Short Circuit 1 | . . 1 . Siege Activations . | . . . . Martial Activations . | . . . . Shielding Activations . | . . . . Robots Disrupted . | . . . . Combat Hostiles . | . . . . Robots Corrupted . | . . . . Combat Hostiles . | . . . . Parts Fried . | . . . . Impact Corruptions . | . . . . Robots Melted . | . . . . Combat Hostiles . | . . . . Parts Melted 1 | . 1 . . Heat Transferred 658 | . 335 298 25 Parts Sabotaged . | . . . . Parts Stolen . | . . . . Parts Stripped . | . . . . Power Chain Reactions . | . . . . Alert | -11 -10 -10 -10 ------- Run | Yrd Mat Min Sub Maximum Alert Level . | . . . . Low Security (%) 100 | 100 100 100 . Level 1 . | . . . . Level 2 . | . . . . Level 3 . | . . . . Level 4 . | . . . . Level 5 . | . . . . High Security . | . . . . Max Security . | . . . . Peak Influence 110 | . 110 59 . Initial 34 | . . 34 . Average 30 | . 44 31 . Influence Increases 205 | . 140 65 . Destroy 0b10 Robot/C 140 | . 120 20 . Destroy Leader 20 | . 20 . . Lose Combat Pursuer 45 | . . 45 . Influence Decreases 205 | . 50 96 59 Entered New Map 87 | . . 56 31 Time Decay 78 | . 50 20 8 Lost Part 40 | . . 20 20 Squads Dispatched 1 | . 1 . . Investigation . | . . . . Extermination . | . . . . Reinforcement 1 | . 1 . . Assault . | . . . . Garrison . | . . . . Intercept . | . . . . Searches Triggered . | . . . . Construction Impeded . | . . . . Haulers Reinforced . | . . . . Active Scanning Responses . | . . . . Cargo Convoy Interrupts . | . . . . Stealth | -11 -10 -10 -10 --------- Run | Yrd Mat Min Sub Distress Signals . | . . . . Communications Jammed . | . . . . Distress Signals . | . . . . Times Spotted 13 | . 7 4 2 Peak Tracking Total 3 | . 3 3 1 Tactical Retreats 1 | . . 1 . Traps | -11 -10 -10 -10 ------- Run | Yrd Mat Min Sub Traps Triggered . | . . . . Indirectly . | . . . . Trap Hack Attempts . | . . . . Triggered . | . . . . Disarmed . | . . . . Reprogrammed . | . . . . Reused . | . . . . Traps Extracted . | . . . . Installed . | . . . . Triggered . | . . . . Machines | -11 -10 -10 -10 ---------- Run | Yrd Mat Min Sub Machines Disabled . | . . . . Max in Single Turn . | . . . . Machines Repaired . | . . . . Machines Dismantled . | . . . . Machines Sabotaged . | . . . . Overloaded Fab Kills . | . . . . Hacking | -11 -10 -10 -10 --------- Run | Yrd Mat Min Sub Machines Accessed 1 | . 1 . . Terminals 1 | . 1 . . Fabricators . | . . . . Repair Stations . | . . . . Recycling Units . | . . . . Scanalyzers . | . . . . Garrison Access . | . . . . Total Hacks 1 | . 1 . . Successful . | . . . . Failed 1 | . 1 . . Catastrophic . | . . . . Database Lockouts . | . . . . Manual 1 | . 1 . . Terminals 1 | . 1 . . Fabricators . | . . . . Repair Stations . | . . . . Recycling Units . | . . . . Scanalyzers . | . . . . Garrison Access . | . . . . Terminal Hacks . | . . . . Fabricator Hacks . | . . . . Repair Station Hacks . | . . . . Recycling Unit Hacks . | . . . . Scanalyzer . | . . . . Garrison Access Hacks . | . . . . Unauthorized Hacks . | . . . . Terminals . | . . . . Fabricators . | . . . . Repair Stations . | . . . . Recycling Units . | . . . . Scanalyzers . | . . . . Garrison Access . | . . . . Data Cores Recovered . | . . . . Used . | . . . . Hacking Detections . | . . . . Full Trace Events . | . . . . Feedback Events . | . . . . Feedback Blocked . | . . . . Robot Schematics Acquired . | . . . . Robots Built . | . . . . Authchips . | . . . . Time . | . . . . Total Robot Build Rating . | . . . . Part Schematics Acquired . | . . . . Parts Built . | . . . . Authchips . | . . . . Time . | . . . . Total Part Build Rating . | . . . . Parts Repaired . | . . . . Time . | . . . . Parts Recycled . | . . . . Recycled Matter . | . . . . Retrieved Matter . | . . . . Retrieved Components . | . . . . Parts Scanalyzed . | . . . . Part Schematics Acquired . | . . . . Parts Damaged . | . . . . Bothacking | -11 -10 -10 -10 ------------ Run | Yrd Mat Min Sub Used RIF Installer . | . . . . Robots Hacked . | . . . . Non-combat . | . . . . Combat . | . . . . Robot Hacks Applied . | . . . . Relay Couplers Released . | . . . . Fabnet Peak Effective % . | . . . . Robots Rewired . | . . . . Allies Hacked . | . . . . Hacks Repelled . | . . . . Allies | -11 -10 -10 -10 -------- Run | Yrd Mat Min Sub Total Allies . | . . . . Largest Group . | . . . . Highest-Rated Group . | . . . . Highest-Rated Ally . | . . . . Total Orders . | . . . . Ally Attacks . | . . . . Total Damage . | . . . . Kills . | . . . . Allies Corrupted . | . . . . Allies Melted . | . . . . Intel | -11 -10 -10 -10 ------- Run | Yrd Mat Min Sub Active Infowar (turns) . | . . . . Robot Analysis Total . | . . . . Derelict Logs Recovered . | . . . . Drone Launches . | . . . . Drone Recoveries . | . . . . Exploration | -11 -10 -10 -10 ------------- Run | Yrd Mat Min Sub Turns Passed 431 | 75 156 56 144 Spaces Moved 408 | 55 97 49 207 Core 22 | 20 2 . . Treads 98 | 35 63 . . Legs . | . . . . Wheels . | . . . . Hover . | . . . . Flight 288 | . 32 49 207 Fastest Speed 37 | 50 37 37 37 Average Speed 69 | 120 119 37 39 Slowest Speed 160 | 160 160 40 40 Overloaded Moves . | . . . . Propulsion Burnouts . | . . . . Robots Hopped . | . . . . Potential Cave-ins . | . . . . Cave-ins Triggered . | . . . . Exploration Rate (%) 10 | 3 17 12 11 Regions Visited 3 Branch Regions 2 Pre-discovered Areas 1 | . . . 1 Known Exits Taken . | . . . . Unknown Exits Taken 3 | 1 1 1 . Scrap Searched . | . . . . Spaces Dug . | . . . . Terrain Destroyed . | . . . . Melee . | . . . . Projectile . | . . . . AOE . | . . . . Terrain Rammed . | . . . . Walls Destroyed . | . . . . Machines Disabled . | . . . . Actions | -11 -10 -10 -10 --------- Run | Yrd Mat Min Sub Total 510 | 64 115 72 259 Wait 45 | . . 11 34 Move 405 | 54 96 48 207 Hop . | . . . . Pick Up 14 | 5 4 1 4 Fast Attach . | . . . . Attach 12 | 5 2 2 3 Detach 2 | . . 1 1 Swap 1 | . . 1 . Drop 3 | . 2 1 . Fire 28 | . 11 7 10 Melee . | . . . . Ram . | . . . . Kick . | . . . . Crush . | . . . . Escape Stasis . | . . . . Rewire . | . . . . Trap . | . . . . Miscellaneous . | . . . . Route ------- -11/Scrapyard -10/Materials -10/Mines -10/Subcaves History --------- Turn | Location | Event 5 | -11/Scrapyard | Discovered new exit (range 16) 76 | -11/Scrapyard | Entered Materials 226 | -10/Materials | Discovered new exit (range 16) 232 | -10/Materials | Entered Mines 259 | -10/Mines | Core integrity fell below 50% 284 | -10/Mines | Discovered new exit (range 6) 288 | -10/Mines | Entered Subcaves 289 | -10/Subcaves | Approached by a straggling Scientist 314 | -10/Subcaves | Learned location of Zion (-7) 314 | -10/Subcaves | Met a Zionite searching for "candidates" 327 | -10/Subcaves | Build established: Mutant 341 | -10/Subcaves | Lost 5 parts (1p2n1u1w) 421 | -10/Subcaves | Core integrity fell below 20% 432 | -10/Subcaves | Destroyed by Y-45 Defender with Heavy Assault Rifle Last Messages --------------- Sml. Laser destroyed. 7A-HAI(c) destroyed. EY-U8J(z): "She is not going to be happy we haven't found any suitable candidates yet." Acquired Lgt. Ion Engine. Flight Unit destroyed. Acquired 18 matter. Acquired Machine Analyzer. Flight Unit destroyed. Acquired Tech Extrapolator. Tech Extrapolator violently self-destructs. Subatomizers dissect the Wheel. Lgt. Ion Engine destroyed. EY-U8J(z): "Hey you! It's really dangerous down here, I feel that you could die at any moment. For your health and safety might I suggest a trip to Zion?" World map updated: -7/Zion. Acquired Sub. Machine Gun. Critical hit (Burn: +37). Map ----- +----------------------------------------------------+ | ???????????????????????????????????#%=#??????????? | | ?????????####??????????????????#####& #??????????? | | ?????????# ?????????###?????## ## ##??????????? | | ?????????#" #?????????# #?????# ##??????????? | | ?????????#""####???#### #????## #??????????? | | ?????????#" #####" "#????# ##?????????? | | ?????????#" # ##????## #?????????? | | ?????????##" ## #?????# ## ###???????? | | ??????????##" ## "####?????# ### #???????? | | ????????########" "###??????## #?## #???????? | | ????????# ### " ####??### #??## #???????? | | ????????# ### ## #???# #???????? | | ????????## #?# #???#####???????? | | ?????????## ### ####????????????? | | ??????????## # # ##???????????? | | ???????????## ### ### #???????????? | | ???????????# ### #### #???????????? | | ???????????# ##?# ##?# #???????????? | | ???????????## #######??## ## #???????????? | | ???????????## ## ###### ### #???????????? | | ???????????# ## #?### #??????????? | | ???????????## ###???## #??????????? | | ????????????## ##???????####??????????? | | ?????????????####### #????? #??????????????? | | ???????????????????### ## #??????????????? | | ?????????????????????# @ #?????????????????? | | ????????????????????# ####?????????????????? | | ???????????????????# #????????????????????? | | ?????????????????# #????????????????????? | | ??????????????? #????????????????????? | | ????????????? #????????????????????? | | ????????????# Y ##????????????????????? | | ???????????? ##?????????????????????? | | ???????????? #??????????????????????? | | ????????????? ## ## ??????????????????????? | | ???????????????# ?# ??????????????????????? | | ??????????????? ??## ??????????????????????? | | ???????????????? ????### #??????????????????????? | | ????????????????????????##???????????????????????? | | ?????????????????????????????????????????????????? | | ?????????????????????????????????????????????????? | | ?????????????????????????????????????????????????? | | ?????????????????????????????????????????????????? | | ?????????????????????????????????????????????????? | | ?????????????????????????????????????????????????? | | ?????????????????????????????????????????????????? | | ?????????????????????????????????????????????????? | | ?????????????????????????????????????????????????? | | ?????????????????????????????????????????????????? | | ?????????????????????????????????????????????????? | +----------------------------------------------------+ Best States ------------- Heat Dissipation 35 Energy Generation 10 Energy Capacity 250 Matter Stores 300 Matter Capacity 300 Sight Range 16 Terrain Scan Density 10 Evasion (%) 62 Recoil Reduction 2 Item Schematics ----------------- None Robot Schematics ------------------ None Fabricated ------------ Nothing Repaired ---------- Nothing Alien Tech Used ----------------- None Achievements -------------- None Challenges ------------ None Game ------ Seed DirectedDisruptorChip Manual? 0 Play Time 00:05:16 Cumulative 141.0 hours Start 2025.09.16 @ 17:37:14 End 2025.09.16 @ 17:45:12 Sessions 1 Manual Loads 0 Difficulty Rogue Special Mode None Game No. 474 Rogue 474 Adventurer 0 Explorer 0 Win Type - Total 0 Types 0/0/0/0/0/0/0/0/0/0 Lore% 52 Gallery% 49 Achievement% 37 Wizard Run 0 Options --------- Layout 2 ASCII 0 Keyboard 0 Movement Mouse Keybinds 0 Fullscreen 2 Font 24/Smallcaps Map View 50x44 Zoom Use 0% Tactical HUD 0 Map Filters NONE Filters NONE Steam 1 RUN: 30d60068-b9f0-4fee-be74-a3e1481ae741